[Event "Titled Tuesday Blitz August 08 Early 2023"]
[White "Deng, Henry"]
[Black "Nagare Kaivalya Sandip"]
[WhiteFideId "30965454"]
[BlackFideId "25957929"]
[WhiteElo "2572"]
[BlackElo "2681"]
[Result "0-1"]
[Round "10"]
[TimeControl "180+1"]
[Date "2023.08.08"]
[WhiteClock "0:01:19"]
[BlackClock "0:01:06"]
[Board "53"]

1. e4 {[%clk 0:03:00]}  c5 {[%clk 0:02:59]} 2. Nc3 {[%clk 0:03:00]}  d6 {[%clk 0:03:00]} 3. Nf3 {[%clk 0:03:00]}  Nc6 {[%clk 0:03:00]} 4. d4 {[%clk 0:02:59]}  cxd4 {[%clk 0:03:00]} 5. Nxd4 {[%clk 0:03:00]}  Nf6 {[%clk 0:03:01]} 6. Bg5 {[%clk 0:03:00]}  e6 {[%clk 0:03:01]} 7. Bb5 {[%clk 0:03:01]}  Bd7 {[%clk 0:03:01]} 8. Qd3 {[%clk 0:03:00]}  Be7 {[%clk 0:03:01]} 9. O-O-O {[%clk 0:02:57]}  O-O {[%clk 0:03:01]} 10. Bxc6 {[%clk 0:02:54]}  bxc6 {[%clk 0:03:01]} 11. Rhe1 {[%clk 0:02:55]}  h6 {[%clk 0:02:57]} 12. Bh4 {[%clk 0:02:54]}  Rb8 {[%clk 0:02:54]} 13. Nb3 {[%clk 0:02:53]}  d5 {[%clk 0:02:49]} 14. e5 {[%clk 0:02:52]}  Ne8 {[%clk 0:02:48]} 15. Bxe7 {[%clk 0:02:53]}  Qxe7 {[%clk 0:02:49]} 16. Qd4 {[%clk 0:02:53]}  Bc8 {[%clk 0:02:46]} 17. Nc5 {[%clk 0:02:49]}  Nc7 {[%clk 0:02:44]} 18. f4 {[%clk 0:02:45]}  Na6 {[%clk 0:02:44]} 19. Nxa6 {[%clk 0:02:39]}  Bxa6 {[%clk 0:02:44]} 20. Na4 {[%clk 0:02:39]}  Rb4 {[%clk 0:02:41]} 21. Qc5 {[%clk 0:02:39]}  Qb7 {[%clk 0:02:41]} 22. b3 {[%clk 0:02:37]}  Rxf4 {[%clk 0:02:40]} 23. Qa5 {[%clk 0:02:31]}  Qb5 {[%clk 0:02:29]} 24. Qxb5 {[%clk 0:02:29]}  cxb5 {[%clk 0:02:28]} 25. Nc5 {[%clk 0:02:29]}  Bc8 {[%clk 0:02:27]} 26. c3 {[%clk 0:02:25]}  f6 {[%clk 0:02:23]} 27. b4 {[%clk 0:02:18]}  fxe5 {[%clk 0:02:18]} 28. Rxe5 {[%clk 0:02:19]}  Rf2 {[%clk 0:02:06]} 29. Rd2 {[%clk 0:02:18]}  Rxd2 {[%clk 0:02:06]} 30. Kxd2 {[%clk 0:02:18]}  Rf2+ {[%clk 0:02:07]} 31. Re2 {[%clk 0:02:19]}  Rxe2+ {[%clk 0:02:06]} 32. Kxe2 {[%clk 0:02:20]}  Kf7 {[%clk 0:02:05]} 33. Ke3 {[%clk 0:02:20]}  e5 {[%clk 0:02:04]} 34. Nd3 {[%clk 0:02:18]}  Ke6 {[%clk 0:02:04]} 35. Nc5+ {[%clk 0:02:19]}  Kd6 {[%clk 0:02:04]} 36. Nd3 {[%clk 0:02:19]}  g5 {[%clk 0:01:54]} 37. g3 {[%clk 0:02:18]}  Ke6 {[%clk 0:01:53]} 38. Nc5+ {[%clk 0:02:16]}  Kf5 {[%clk 0:01:53]} 39. Nd3 {[%clk 0:02:17]}  h5 {[%clk 0:01:45]} 40. h4 {[%clk 0:02:15]}  gxh4 {[%clk 0:01:43]} 41. gxh4 {[%clk 0:02:15]}  Be6 {[%clk 0:01:34]} 42. Nc5 {[%clk 0:02:13]}  Bf7 {[%clk 0:01:31]} 43. a3 {[%clk 0:02:09]}  Kg4 {[%clk 0:01:20]} 44. Nd3 {[%clk 0:02:09]}  d4+ {[%clk 0:01:13]} 45. cxd4 {[%clk 0:02:08]}  exd4+ {[%clk 0:01:13]} 46. Kxd4 {[%clk 0:02:09]}  Kxh4 {[%clk 0:01:13]} 47. Ne5 {[%clk 0:02:06]}  Be8 {[%clk 0:01:11]} 48. Ke3 {[%clk 0:01:35]}  Kg3 {[%clk 0:01:09]} 49. Ke2 {[%clk 0:01:35]}  h4 {[%clk 0:01:09]} 50. Kf1 {[%clk 0:01:35]}  h3 {[%clk 0:01:09]} 51. Kg1 {[%clk 0:01:28]}  h2+ {[%clk 0:01:09]} 52. Kh1 {[%clk 0:01:28]}  a6 {[%clk 0:01:07]} 53. Nf3 {[%clk 0:01:19]}  Bc6 {[%clk 0:01:06]} 0-1


[Site "https://www.chess.com"]

[Event "Titled Tuesday Blitz August 08 Early 2023"]
[White "Sakun, Volodymyr"]
[Black "Rosenberg, Evan S"]
[WhiteFideId "14114062"]
[BlackFideId "2019299"]
[WhiteElo "2664"]
[BlackElo "2456"]
[Result "1-0"]
[Round "10"]
[TimeControl "180+1"]
[Date "2023.08.08"]
[WhiteClock "0:00:25"]
[BlackClock "0:00:02"]
[Board "57"]

1. Nf3 {[%clk 0:03:00]}  d5 {[%clk 0:02:59]} 2. d4 {[%clk 0:03:00]}  Bf5 {[%clk 0:02:59]} 3. c4 {[%clk 0:02:52]}  e6 {[%clk 0:02:59]} 4. Qb3 {[%clk 0:02:51]}  Nc6 {[%clk 0:02:59]} 5. a3 {[%clk 0:02:47]}  Na5 {[%clk 0:02:59]} 6. Qa4+ {[%clk 0:02:46]}  c6 {[%clk 0:02:59]} 7. Nbd2 {[%clk 0:02:43]}  Nf6 {[%clk 0:02:45]} 8. e3 {[%clk 0:02:39]}  Nxc4 {[%clk 0:02:36]} 9. Bxc4 {[%clk 0:02:20]}  dxc4 {[%clk 0:02:36]} 10. Qxc4 {[%clk 0:02:21]}  Be7 {[%clk 0:02:35]} 11. O-O {[%clk 0:02:21]}  O-O {[%clk 0:02:34]} 12. b4 {[%clk 0:01:57]}  h6 {[%clk 0:02:34]} 13. Bb2 {[%clk 0:01:56]}  Rc8 {[%clk 0:02:33]} 14. Ne5 {[%clk 0:01:55]}  Ne4 {[%clk 0:02:24]} 15. Nxe4 {[%clk 0:01:55]}  Bxe4 {[%clk 0:02:25]} 16. f3 {[%clk 0:01:55]}  Bh7 {[%clk 0:02:12]} 17. e4 {[%clk 0:01:55]}  Bd6 {[%clk 0:02:02]} 18. Rad1 {[%clk 0:01:52]}  a5 {[%clk 0:01:57]} 19. Bc3 {[%clk 0:01:46]}  axb4 {[%clk 0:01:50]} 20. Bxb4 {[%clk 0:01:44]}  Ra8 {[%clk 0:01:43]} 21. Rb1 {[%clk 0:01:37]}  Re8 {[%clk 0:01:34]} 22. Bxd6 {[%clk 0:01:36]}  Qxd6 {[%clk 0:01:34]} 23. Rxb7 {[%clk 0:01:36]}  Rxa3 {[%clk 0:01:14]} 24. Nxf7 {[%clk 0:01:30]}  Qf4 {[%clk 0:01:08]} 25. Qxc6 {[%clk 0:01:13]}  Rf8 {[%clk 0:01:07]} 26. Ne5 {[%clk 0:00:56]}  Qe3+ {[%clk 0:00:50]} 27. Kh1 {[%clk 0:00:56]}  Qxd4 {[%clk 0:00:38]} 28. Qxe6+ {[%clk 0:00:56]}  Kh8 {[%clk 0:00:39]} 29. Nf7+ {[%clk 0:00:53]}  Rxf7 {[%clk 0:00:39]} 30. Qxf7 {[%clk 0:00:53]}  Ra8 {[%clk 0:00:33]} 31. Rfb1 {[%clk 0:00:46]}  Bg8 {[%clk 0:00:25]} 32. Qg6 {[%clk 0:00:35]}  Qe5 {[%clk 0:00:14]} 33. Qg3 {[%clk 0:00:32]}  Qf6 {[%clk 0:00:11]} 34. e5 {[%clk 0:00:31]}  Qf8 {[%clk 0:00:09]} 35. h3 {[%clk 0:00:30]}  Bh7 {[%clk 0:00:09]} 36. Re1 {[%clk 0:00:29]}  Re8 {[%clk 0:00:08]} 37. e6 {[%clk 0:00:29]}  Bf5 {[%clk 0:00:08]} 38. e7 {[%clk 0:00:29]}  Qf7 {[%clk 0:00:07]} 39. Qd6 {[%clk 0:00:27]}  Kh7 {[%clk 0:00:07]} 40. Kh2 {[%clk 0:00:27]}  Qh5 {[%clk 0:00:04]} 41. g4 {[%clk 0:00:25]}  Qh4 {[%clk 0:00:03]} 42. Qg3 {[%clk 0:00:26]}  Qxg3+ {[%clk 0:00:02]} 43. Kxg3 {[%clk 0:00:26]}  Bc8 {[%clk 0:00:02]} 44. Rb8 {[%clk 0:00:25]}  Bd7 {[%clk 0:00:01]} 45. Rxe8 {[%clk 0:00:25]}  Bxe8 {[%clk 0:00:02]} 1-0


[Site "https://www.chess.com"]

[Event "Titled Tuesday Blitz August 08 Early 2023"]
[White "Goroshkov, Maksym"]
[Black "Lopez Del Alamo, Antonio"]
[WhiteFideId "14142716"]
[BlackFideId "2227339"]
[WhiteElo "2660"]
[BlackElo "2393"]
[Result "1-0"]
[Round "10"]
[TimeControl "180+1"]
[Date "2023.08.08"]
[WhiteClock "0:00:49"]
[BlackClock "0:00:00"]
[Board "58"]

1. e4 {[%clk 0:02:59]}  c5 {[%clk 0:02:58]} 2. b4 {[%clk 0:02:58]}  cxb4 {[%clk 0:02:56]} 3. a3 {[%clk 0:02:59]}  d5 {[%clk 0:02:55]} 4. exd5 {[%clk 0:02:59]}  Nf6 {[%clk 0:02:53]} 5. axb4 {[%clk 0:02:57]}  Qxd5 {[%clk 0:02:52]} 6. Nf3 {[%clk 0:02:57]}  e5 {[%clk 0:02:50]} 7. Nc3 {[%clk 0:02:57]}  Qe6 {[%clk 0:02:47]} 8. Nb5 {[%clk 0:02:51]}  Bd6 {[%clk 0:02:47]} 9. Nxd6+ {[%clk 0:02:48]}  Qxd6 {[%clk 0:02:47]} 10. b5 {[%clk 0:02:47]}  e4 {[%clk 0:02:33]} 11. Ba3 {[%clk 0:02:44]}  Qd5 {[%clk 0:02:25]} 12. c4 {[%clk 0:02:42]}  Qd7 {[%clk 0:01:48]} 13. Ne5 {[%clk 0:02:33]}  Qd4 {[%clk 0:01:40]} 14. f4 {[%clk 0:02:26]}  Nbd7 {[%clk 0:01:06]} 15. Nxd7 {[%clk 0:02:09]}  Bxd7 {[%clk 0:01:07]} 16. Be2 {[%clk 0:02:07]}  Ng4 {[%clk 0:00:34]} 17. Bc5 {[%clk 0:01:15]}  Qxc5 {[%clk 0:00:27]} 18. Bxg4 {[%clk 0:01:15]}  Bxg4 {[%clk 0:00:26]} 19. Qxg4 {[%clk 0:01:16]}  O-O {[%clk 0:00:23]} 20. Rc1 {[%clk 0:01:15]}  Rfe8 {[%clk 0:00:19]} 21. Qe2 {[%clk 0:01:14]}  Rad8 {[%clk 0:00:17]} 22. Qe3 {[%clk 0:01:12]}  Qf5 {[%clk 0:00:14]} 23. O-O {[%clk 0:01:11]}  b6 {[%clk 0:00:14]} 24. c5 {[%clk 0:01:08]}  Rd3 {[%clk 0:00:14]} 25. Qf2 {[%clk 0:01:08]}  e3 {[%clk 0:00:14]} 26. dxe3 {[%clk 0:01:06]}  Rdxe3 {[%clk 0:00:14]} 27. c6 {[%clk 0:01:03]}  Re2 {[%clk 0:00:15]} 28. Qf3 {[%clk 0:00:54]}  h5 {[%clk 0:00:15]} 29. c7 {[%clk 0:00:53]}  h4 {[%clk 0:00:14]} 30. Qb7 {[%clk 0:00:50]}  h3 {[%clk 0:00:12]} 31. c8=Q {[%clk 0:00:49]}  Rxg2+ {[%clk 0:00:03]} 32. Kh1 {[%clk 0:00:49]}  Rxh2+ {[%clk 0:00:00]} 33. Kxh2 {[%clk 0:00:49]} 1-0


[Site "https://www.chess.com"]

[Event "Titled Tuesday Blitz August 08 Early 2023"]
[White "KorolDimitriy75"]
[Black "Fantastic_Power"]
[WhiteElo "2411"]
[BlackElo "2788"]
[Result "0-1"]
[Round "10"]
[TimeControl "180+1"]
[Date "2023.08.08"]
[WhiteClock "0:00:00"]
[BlackClock "0:00:05"]
[Board "59"]

1. d4 {[%clk 0:03:00]}  Nf6 {[%clk 0:02:59]} 2. c4 {[%clk 0:03:01]}  e6 {[%clk 0:02:58]} 3. Nc3 {[%clk 0:03:02]}  Bb4 {[%clk 0:02:55]} 4. Qc2 {[%clk 0:03:02]}  O-O {[%clk 0:02:55]} 5. e4 {[%clk 0:03:02]}  d5 {[%clk 0:02:55]} 6. cxd5 {[%clk 0:03:03]}  exd5 {[%clk 0:02:54]} 7. e5 {[%clk 0:03:04]}  Ne4 {[%clk 0:02:55]} 8. Bd3 {[%clk 0:03:04]}  c5 {[%clk 0:02:55]} 9. Ne2 {[%clk 0:03:05]}  Nc6 {[%clk 0:02:50]} 10. O-O {[%clk 0:03:04]}  f5 {[%clk 0:02:28]} 11. Nxd5 {[%clk 0:03:02]}  cxd4 {[%clk 0:02:11]} 12. Nxb4 {[%clk 0:02:36]}  Nxb4 {[%clk 0:02:12]} 13. Qb3+ {[%clk 0:02:36]}  Nd5 {[%clk 0:02:10]} 14. Nf4 {[%clk 0:02:36]}  Nc5 {[%clk 0:02:06]} 15. Qxd5+ {[%clk 0:02:12]}  Qxd5 {[%clk 0:02:05]} 16. Nxd5 {[%clk 0:02:13]}  Nxd3 {[%clk 0:02:06]} 17. f4 {[%clk 0:01:58]}  Bd7 {[%clk 0:02:01]} 18. Rd1 {[%clk 0:01:52]}  Nb4 {[%clk 0:01:55]} 19. Nxb4 {[%clk 0:01:48]}  a5 {[%clk 0:01:51]} 20. Rxd4 {[%clk 0:01:29]}  Be6 {[%clk 0:01:50]} 21. Nc2 {[%clk 0:01:04]}  Rac8 {[%clk 0:01:46]} 22. Ne3 {[%clk 0:01:04]}  Rfd8 {[%clk 0:01:31]} 23. Rxd8+ {[%clk 0:01:03]}  Rxd8 {[%clk 0:01:32]} 24. Kf2 {[%clk 0:01:00]}  g5 {[%clk 0:01:24]} 25. g3 {[%clk 0:00:37]}  gxf4 {[%clk 0:01:23]} 26. gxf4 {[%clk 0:00:37]}  Rd4 {[%clk 0:01:24]} 27. Kg3 {[%clk 0:00:33]}  b5 {[%clk 0:01:20]} 28. b3 {[%clk 0:00:27]}  b4 {[%clk 0:01:17]} 29. Bb2 {[%clk 0:00:16]}  Rd2 {[%clk 0:01:17]} 30. Rb1 {[%clk 0:00:16]}  a4 {[%clk 0:01:16]} 31. Nc4 {[%clk 0:00:12]}  Rc2 {[%clk 0:00:59]} 32. Kh4 {[%clk 0:00:10]}  a3 {[%clk 0:00:56]} 33. Bxa3 {[%clk 0:00:08]}  bxa3 {[%clk 0:00:54]} 34. Nxa3 {[%clk 0:00:08]}  Rxa2 {[%clk 0:00:32]} 35. Nc4 {[%clk 0:00:08]}  Rg2 {[%clk 0:00:24]} 36. Nd6 {[%clk 0:00:04]}  Rg4+ {[%clk 0:00:22]} 37. Kh3 {[%clk 0:00:04]}  h5 {[%clk 0:00:19]} 38. b4 {[%clk 0:00:03]}  Bd5 {[%clk 0:00:20]} 39. Rb2 {[%clk 0:00:03]}  Rxf4 {[%clk 0:00:09]} 40. b5 {[%clk 0:00:03]}  Kg7 {[%clk 0:00:04]} 41. b6 {[%clk 0:00:00]}  Kg6 {[%clk 0:00:05]} 0-1


[Site "https://www.chess.com"]

[Event "Titled Tuesday Blitz August 08 Early 2023"]
[White "Kosteniuk, Alexandra"]
[Black "Domingo Nunez, Alejandro"]
[WhiteFideId "4128125"]
[BlackFideId "22245561"]
[WhiteElo "2748"]
[BlackElo "2527"]
[Result "1-0"]
[Round "10"]
[TimeControl "180+1"]
[Date "2023.08.08"]
[WhiteClock "0:00:37"]
[BlackClock "0:00:00"]
[Board "62"]

1. d4 {[%clk 0:03:00]}  g6 {[%clk 0:02:59]} 2. e4 {[%clk 0:03:00]}  Bg7 {[%clk 0:02:59]} 3. Nc3 {[%clk 0:03:01]}  c6 {[%clk 0:03:00]} 4. f4 {[%clk 0:03:00]}  d5 {[%clk 0:03:01]} 5. e5 {[%clk 0:03:01]}  f6 {[%clk 0:03:01]} 6. h4 {[%clk 0:02:54]}  Nh6 {[%clk 0:03:01]} 7. h5 {[%clk 0:02:53]}  Bg4 {[%clk 0:03:01]} 8. Be2 {[%clk 0:02:53]}  gxh5 {[%clk 0:03:01]} 9. Rxh5 {[%clk 0:02:48]}  Bxh5 {[%clk 0:03:00]} 10. Bxh5+ {[%clk 0:02:49]}  Kf8 {[%clk 0:03:00]} 11. Nf3 {[%clk 0:02:46]}  Qd7 {[%clk 0:02:50]} 12. Nh4 {[%clk 0:02:40]}  f5 {[%clk 0:01:48]} 13. Qd3 {[%clk 0:02:21]}  e6 {[%clk 0:01:27]} 14. b3 {[%clk 0:02:21]}  Kg8 {[%clk 0:01:06]} 15. Ba3 {[%clk 0:02:14]}  Bf8 {[%clk 0:01:03]} 16. Bb2 {[%clk 0:02:14]}  Qg7 {[%clk 0:01:00]} 17. O-O-O {[%clk 0:02:12]}  Nd7 {[%clk 0:00:59]} 18. Rh1 {[%clk 0:02:09]}  Be7 {[%clk 0:00:58]} 19. Qf3 {[%clk 0:01:23]}  Kf8 {[%clk 0:00:51]} 20. g3 {[%clk 0:01:17]}  Rg8 {[%clk 0:00:51]} 21. Ne2 {[%clk 0:01:16]}  Ng4 {[%clk 0:00:47]} 22. Ng2 {[%clk 0:01:14]}  Rh8 {[%clk 0:00:17]} 23. c4 {[%clk 0:01:13]}  Kg8 {[%clk 0:00:18]} 24. Ne3 {[%clk 0:01:12]}  Nxe3 {[%clk 0:00:16]} 25. Qxe3 {[%clk 0:01:12]}  Nf8 {[%clk 0:00:16]} 26. g4 {[%clk 0:01:07]}  fxg4 {[%clk 0:00:15]} 27. Bxg4 {[%clk 0:01:06]}  Qf7 {[%clk 0:00:14]} 28. Qh3 {[%clk 0:01:02]}  h6 {[%clk 0:00:06]} 29. Rg1 {[%clk 0:01:01]}  Kh7 {[%clk 0:00:07]} 30. f5 {[%clk 0:00:57]}  Rg8 {[%clk 0:00:06]} 31. f6 {[%clk 0:00:54]}  Bxf6 {[%clk 0:00:02]} 32. exf6 {[%clk 0:00:52]}  Qxf6 {[%clk 0:00:03]} 33. Bc3 {[%clk 0:00:45]}  Ng6 {[%clk 0:00:03]} 34. Bd2 {[%clk 0:00:44]}  Qg7 {[%clk 0:00:02]} 35. Bxe6 {[%clk 0:00:39]}  Rge8 {[%clk 0:00:03]} 36. Bf5 {[%clk 0:00:37]}  Rxe2 {[%clk 0:00:00]} 37. Rxg6 {[%clk 0:00:37]} 1-0


[Site "https://www.chess.com"]

[Event "Titled Tuesday Blitz August 08 Early 2023"]
[White "Djordjevic, Vuk"]
[Black "reevecanada"]
[WhiteFideId "902098"]
[WhiteElo "2699"]
[BlackElo "2527"]
[Result "1-0"]
[Round "10"]
[TimeControl "180+1"]
[Date "2023.08.08"]
[WhiteClock "0:00:05"]
[BlackClock "0:00:17"]
[Board "63"]

1. d4 {[%clk 0:03:00]}  d5 {[%clk 0:02:58]} 2. Nf3 {[%clk 0:03:00]}  Nf6 {[%clk 0:02:54]} 3. c4 {[%clk 0:03:00]}  c6 {[%clk 0:02:54]} 4. Bg5 {[%clk 0:03:00]}  dxc4 {[%clk 0:02:51]} 5. a4 {[%clk 0:02:46]}  Ne4 {[%clk 0:02:49]} 6. Nc3 {[%clk 0:02:30]}  Nxc3 {[%clk 0:02:46]} 7. bxc3 {[%clk 0:02:29]}  b5 {[%clk 0:02:47]} 8. e4 {[%clk 0:02:27]}  a6 {[%clk 0:02:45]} 9. d5 {[%clk 0:01:55]}  Bb7 {[%clk 0:02:34]} 10. axb5 {[%clk 0:01:50]}  axb5 {[%clk 0:02:32]} 11. Rxa8 {[%clk 0:01:42]}  Bxa8 {[%clk 0:02:32]} 12. Qa1 {[%clk 0:01:28]}  Bb7 {[%clk 0:02:27]} 13. Qa7 {[%clk 0:01:25]}  Qc7 {[%clk 0:02:25]} 14. Bf4 {[%clk 0:01:09]}  Qxf4 {[%clk 0:02:02]} 15. Qxb7 {[%clk 0:00:25]}  Kd8 {[%clk 0:01:59]} 16. e5 {[%clk 0:00:12]}  Qc1+ {[%clk 0:01:50]} 17. Ke2 {[%clk 0:00:12]}  Qc2+ {[%clk 0:01:47]} 18. Nd2 {[%clk 0:00:12]}  Qd3+ {[%clk 0:01:45]} 19. Ke1 {[%clk 0:00:10]}  Qxd5 {[%clk 0:01:41]} 20. Qxb8+ {[%clk 0:00:09]}  Kd7 {[%clk 0:01:41]} 21. Qb7+ {[%clk 0:00:09]}  Ke6 {[%clk 0:01:40]} 22. Nf3 {[%clk 0:00:07]}  f6 {[%clk 0:01:37]} 23. Be2 {[%clk 0:00:04]}  Qe4 {[%clk 0:01:32]} 24. Qc8+ {[%clk 0:00:02]}  Kf7 {[%clk 0:01:31]} 25. e6+ {[%clk 0:00:02]}  Qxe6 {[%clk 0:01:30]} 26. Qxe6+ {[%clk 0:00:02]}  Kxe6 {[%clk 0:01:30]} 27. Nd4+ {[%clk 0:00:03]}  Kd7 {[%clk 0:01:29]} 28. Bf3 {[%clk 0:00:03]}  e5 {[%clk 0:01:27]} 29. Nxc6 {[%clk 0:00:02]}  Bc5 {[%clk 0:01:25]} 30. Ke2 {[%clk 0:00:02]}  Kc7 {[%clk 0:01:24]} 31. Rd1 {[%clk 0:00:02]}  Re8 {[%clk 0:01:08]} 32. Nb4 {[%clk 0:00:01]}  e4 {[%clk 0:01:07]} 33. Bg4 {[%clk 0:00:01]}  Ra8 {[%clk 0:01:01]} 34. Nd5+ {[%clk 0:00:01]}  Kb7 {[%clk 0:01:00]} 35. Nb4 {[%clk 0:00:02]}  Ra3 {[%clk 0:00:58]} 36. Bf5 {[%clk 0:00:02]}  Rxc3 {[%clk 0:00:57]} 37. Bxe4+ {[%clk 0:00:03]}  Kc8 {[%clk 0:00:56]} 38. Bf5+ {[%clk 0:00:03]}  Kb8 {[%clk 0:00:42]} 39. Na6+ {[%clk 0:00:03]}  Kb7 {[%clk 0:00:37]} 40. Nxc5+ {[%clk 0:00:04]}  Kb6 {[%clk 0:00:37]} 41. Ne4 {[%clk 0:00:04]}  Ra3 {[%clk 0:00:36]} 42. Rd6+ {[%clk 0:00:05]}  Ka5 {[%clk 0:00:35]} 43. Rd5 {[%clk 0:00:05]}  Ra2+ {[%clk 0:00:31]} 44. Ke3 {[%clk 0:00:04]}  Ra3+ {[%clk 0:00:30]} 45. Ke2 {[%clk 0:00:05]}  Ra2+ {[%clk 0:00:30]} 46. Ke3 {[%clk 0:00:06]}  Ra3+ {[%clk 0:00:30]} 47. Kd4 {[%clk 0:00:06]}  Kb4 {[%clk 0:00:28]} 48. Nd6 {[%clk 0:00:05]}  Ra1 {[%clk 0:00:15]} 49. Rxb5+ {[%clk 0:00:04]}  Ka4 {[%clk 0:00:15]} 50. Bc2+ {[%clk 0:00:04]}  Ka3 {[%clk 0:00:16]} 51. Nxc4+ {[%clk 0:00:04]}  Ka2 {[%clk 0:00:17]} 52. Rb2# {[%clk 0:00:05]} 1-0


[Site "https://www.chess.com"]

[Event "Titled Tuesday Blitz August 08 Early 2023"]
[White "Ansh M Shah"]
[Black "Kleiman, Jake"]
[WhiteFideId "25033379"]
[BlackFideId "2020041"]
[WhiteElo "2521"]
[BlackElo "2644"]
[Result "0-1"]
[Round "10"]
[TimeControl "180+1"]
[Date "2023.08.08"]
[WhiteClock "0:00:00"]
[BlackClock "0:01:49"]
[Board "66"]

1. Nf3 {[%clk 0:03:00]}  Nf6 {[%clk 0:03:00]} 2. g3 {[%clk 0:03:01]}  e6 {[%clk 0:03:00]} 3. Bg2 {[%clk 0:03:02]}  d5 {[%clk 0:03:01]} 4. O-O {[%clk 0:03:03]}  g6 {[%clk 0:03:01]} 5. b3 {[%clk 0:03:03]}  Bg7 {[%clk 0:03:02]} 6. Bb2 {[%clk 0:03:04]}  O-O {[%clk 0:03:03]} 7. d3 {[%clk 0:03:04]}  a5 {[%clk 0:03:04]} 8. a3 {[%clk 0:03:04]}  c5 {[%clk 0:03:04]} 9. Nbd2 {[%clk 0:03:05]}  Nc6 {[%clk 0:03:04]} 10. e4 {[%clk 0:03:02]}  a4 {[%clk 0:03:04]} 11. Rc1 {[%clk 0:02:54]}  b6 {[%clk 0:03:00]} 12. Re1 {[%clk 0:02:44]}  axb3 {[%clk 0:02:57]} 13. cxb3 {[%clk 0:02:42]}  Bb7 {[%clk 0:02:54]} 14. Qc2 {[%clk 0:02:31]}  Re8 {[%clk 0:02:50]} 15. Qb1 {[%clk 0:02:25]}  h6 {[%clk 0:02:39]} 16. b4 {[%clk 0:02:24]}  cxb4 {[%clk 0:02:30]} 17. axb4 {[%clk 0:02:25]}  Ra4 {[%clk 0:02:26]} 18. b5 {[%clk 0:02:08]}  Nb4 {[%clk 0:02:24]} 19. Bc3 {[%clk 0:01:38]}  Na2 {[%clk 0:02:23]} 20. Bxf6 {[%clk 0:01:25]}  Bxf6 {[%clk 0:02:24]} 21. e5 {[%clk 0:01:25]}  Be7 {[%clk 0:02:22]} 22. Rc2 {[%clk 0:01:10]}  Qa8 {[%clk 0:02:21]} 23. h4 {[%clk 0:00:59]}  d4 {[%clk 0:02:09]} 24. h5 {[%clk 0:00:54]}  Nc3 {[%clk 0:02:04]} 25. Qc1 {[%clk 0:00:34]}  Ne2+ {[%clk 0:02:00]} 26. Rxe2 {[%clk 0:00:33]}  Ra1 {[%clk 0:02:00]} 27. hxg6 {[%clk 0:00:08]}  Rxc1+ {[%clk 0:01:59]} 28. Rxc1 {[%clk 0:00:09]}  fxg6 {[%clk 0:01:59]} 29. Ne4 {[%clk 0:00:07]}  Rc8 {[%clk 0:01:57]} 30. Rxc8+ {[%clk 0:00:06]}  Qxc8 {[%clk 0:01:57]} 31. Nfd2 {[%clk 0:00:06]}  Bd5 {[%clk 0:01:51]} 32. f4 {[%clk 0:00:00]}  Qc2 {[%clk 0:01:49]} 0-1


[Site "https://www.chess.com"]

[Event "Titled Tuesday Blitz August 08 Early 2023"]
[White "Piesik, Piotr"]
[Black "Lehtosaari, Mauri"]
[WhiteFideId "1136194"]
[BlackFideId "501999"]
[WhiteElo "2642"]
[BlackElo "2521"]
[Result "1-0"]
[Round "10"]
[TimeControl "180+1"]
[Date "2023.08.08"]
[WhiteClock "0:00:50"]
[BlackClock "0:00:08"]
[Board "67"]

1. Nf3 {[%clk 0:03:00]}  d5 {[%clk 0:02:56]} 2. g3 {[%clk 0:03:01]}  Nf6 {[%clk 0:02:50]} 3. Bg2 {[%clk 0:03:01]}  Bg4 {[%clk 0:02:49]} 4. O-O {[%clk 0:03:01]}  Nbd7 {[%clk 0:02:48]} 5. d3 {[%clk 0:03:01]}  e6 {[%clk 0:02:47]} 6. Nbd2 {[%clk 0:03:01]}  Bc5 {[%clk 0:02:45]} 7. e4 {[%clk 0:03:01]}  O-O {[%clk 0:02:44]} 8. Qe1 {[%clk 0:02:59]}  dxe4 {[%clk 0:02:42]} 9. dxe4 {[%clk 0:02:59]}  e5 {[%clk 0:02:40]} 10. Nb3 {[%clk 0:02:59]}  Bb6 {[%clk 0:02:38]} 11. a4 {[%clk 0:02:59]}  a5 {[%clk 0:02:33]} 12. Nfd2 {[%clk 0:02:56]}  Be6 {[%clk 0:02:28]} 13. Qe2 {[%clk 0:02:54]}  c6 {[%clk 0:02:09]} 14. Nc4 {[%clk 0:02:54]}  Bc7 {[%clk 0:02:07]} 15. Be3 {[%clk 0:02:53]}  Qe7 {[%clk 0:02:04]} 16. f3 {[%clk 0:02:46]}  h6 {[%clk 0:01:58]} 17. Rfd1 {[%clk 0:02:44]}  Rfd8 {[%clk 0:01:57]} 18. Bf1 {[%clk 0:02:43]}  Bxc4 {[%clk 0:01:34]} 19. Qxc4 {[%clk 0:02:43]}  Bb6 {[%clk 0:01:35]} 20. Qc3 {[%clk 0:02:33]}  Bxe3+ {[%clk 0:01:33]} 21. Qxe3 {[%clk 0:02:34]}  Nf8 {[%clk 0:01:30]} 22. Qb6 {[%clk 0:02:27]}  Qb4 {[%clk 0:01:00]} 23. Qxb4 {[%clk 0:02:26]}  axb4 {[%clk 0:01:01]} 24. a5 {[%clk 0:02:25]}  Ne6 {[%clk 0:00:59]} 25. Bc4 {[%clk 0:02:08]}  Nd4 {[%clk 0:00:47]} 26. Nxd4 {[%clk 0:02:08]}  exd4 {[%clk 0:00:48]} 27. e5 {[%clk 0:02:07]}  Ne8 {[%clk 0:00:46]} 28. f4 {[%clk 0:02:04]}  Nc7 {[%clk 0:00:45]} 29. Kf2 {[%clk 0:02:03]}  Kf8 {[%clk 0:00:45]} 30. Kf3 {[%clk 0:02:03]}  Ke7 {[%clk 0:00:42]} 31. Ke4 {[%clk 0:02:03]}  c5 {[%clk 0:00:42]} 32. f5 {[%clk 0:01:54]}  f6 {[%clk 0:00:32]} 33. Re1 {[%clk 0:01:54]}  Re8 {[%clk 0:00:27]} 34. Kf4 {[%clk 0:01:54]}  fxe5+ {[%clk 0:00:25]} 35. Rxe5+ {[%clk 0:01:53]}  Kd6 {[%clk 0:00:25]} 36. Rxe8 {[%clk 0:01:29]}  Rxe8 {[%clk 0:00:26]} 37. h4 {[%clk 0:01:25]}  Nd5+ {[%clk 0:00:18]} 38. Bxd5 {[%clk 0:01:25]}  Kxd5 {[%clk 0:00:19]} 39. a6 {[%clk 0:01:21]}  b5 {[%clk 0:00:19]} 40. a7 {[%clk 0:01:21]}  Ra8 {[%clk 0:00:20]} 41. g4 {[%clk 0:01:20]}  c4 {[%clk 0:00:20]} 42. g5 {[%clk 0:01:19]}  hxg5+ {[%clk 0:00:20]} 43. hxg5 {[%clk 0:01:20]}  b3 {[%clk 0:00:19]} 44. cxb3 {[%clk 0:01:20]}  d3 {[%clk 0:00:20]} 45. bxc4+ {[%clk 0:01:18]}  bxc4 {[%clk 0:00:21]} 46. Ke3 {[%clk 0:01:13]}  Ke5 {[%clk 0:00:17]} 47. Ra5+ {[%clk 0:01:13]}  Kd6 {[%clk 0:00:17]} 48. Kd2 {[%clk 0:01:12]}  Kc6 {[%clk 0:00:16]} 49. Kc3 {[%clk 0:01:10]}  Kb6 {[%clk 0:00:16]} 50. Ra4 {[%clk 0:01:09]}  Kb5 {[%clk 0:00:15]} 51. Rb4+ {[%clk 0:01:04]}  Ka5 {[%clk 0:00:15]} 52. Rb7 {[%clk 0:01:00]}  Rd8 {[%clk 0:00:13]} 53. Kd2 {[%clk 0:01:00]}  Ra8 {[%clk 0:00:12]} 54. Rxg7 {[%clk 0:01:00]}  Kb4 {[%clk 0:00:13]} 55. Rb7+ {[%clk 0:00:59]}  Kc5 {[%clk 0:00:14]} 56. g6 {[%clk 0:00:59]}  Rh8 {[%clk 0:00:12]} 57. Rd7 {[%clk 0:00:51]}  Rh2+ {[%clk 0:00:12]} 58. Ke3 {[%clk 0:00:52]}  Rh3+ {[%clk 0:00:10]} 59. Kf4 {[%clk 0:00:51]}  Rh8 {[%clk 0:00:08]} 60. g7 {[%clk 0:00:50]} 1-0


[Site "https://www.chess.com"]